bitfinex/quotes_SOLUSD_20250822
["timestamp","ask_amount","ask_price","bid_price","bid_amount"]
[1755835314008,0.06,182.25,182.24,2.900401]
[1755835314433,0.06,182.25,182.24,33.78998665]
[1755835314737,0.06,182.25,182.24,29.18472414]
[1755835314917,0.06,182.25,182.24,34.07430979]
[1755835315840,0.06,182.25,182.24,58.04675898]
[1755835316020,0.06,182.25,182.24,53.15717333]
[1755835318224,0.06,182.25,182.24,50.39430979]
[1755835318417,0.06,182.25,182.24,69.47717333]
[1755835328013,0.78,182.25,182.24,49.72430979]
[1755835328216,0.78,182.25,182.24,33.11998665]
[1755835328422,0.06,182.25,182.24,75.70430979]
[1755835328723,0.06,182.25,182.24,76.37430979]
[1755835329276,0.78,182.25,182.24,70.530401]
[1755835329442,0.78,182.25,182.24,75.41998665]
[1755835331780,0.78,182.25,182.24,70.530401]
[1755835331963,0.78,182.25,182.24,75.41998665]
[1755835332251,0.06,182.25,182.24,75.41998665]
[1755835332655,0.78,182.25,182.24,28.230401]
[1755835332819,5.81174722,182.25,182.24,0.03]
[1755835334050,10.70133287,182.25,182.24,0.03]
[1755835334230,5.81174722,182.25,182.24,0.03]
[1755835335748,10.70133287,182.25,182.24,0.03]
[1755835336063,14.35370156,182.25,182.24,0.03]
[1755835338750,10.70133287,182.25,182.24,0.03]
[1755835339067,53.00133287,182.25,182.24,0.03]
[1755835339374,48.11174722,182.25,182.24,0.03]
[1755835340851,5.81174722,182.25,182.24,0.03]
[1755835341067,0.06,182.25,182.24,0.03]
[1755835341241,0.06,182.25,182.24,5.57958565]
[1755835342072,0.06,182.25,182.24,7.78047165]
[1755835343042,0.06,182.25,182.24,2.230886]
[1755835344089,0.74,182.25,182.24,0.03]
[1755835344849,5.62958565,182.25,182.24,0.03]
[1755835345057,5.77174722,182.25,182.24,0.03]
[1755835346371,48.09174722,182.25,182.24,0.03]
[1755835347951,52.98133287,182.25,182.24,0.03]
[1755835348757,5.77174722,182.25,182.24,0.03]
[1755835349090,48.09174722,182.25,182.24,0.03]
[1755835350561,52.98133287,182.25,182.24,0.03]
[1755835351152,48.09174722,182.25,182.24,0.03]
[1755835352180,52.98133287,182.25,182.24,0.03]
[1755835353473,10.66133287,182.25,182.24,0.03]
[1755835353674,52.98133287,182.25,182.24,0.03]
[1755835354527,52.98133287,182.25,182.22,0.03]
[1755835354528,0.14216157,182.24,182.22,0.03]
[1755835354667,5.03174722,182.23,182.22,0.03]
[1755835354863,5.71174722,182.23,182.22,0.03]
[1755835357188,0.14216157,182.22,182.15,26.28]
[1755835357362,4.88958565,182.17,182.15,26.28]
[1755835357576,4.88958565,182.17,182.15,26.0]
[1755835357865,4.88958565,182.16,182.13,26.03]
[1755835358872,4.88958565,182.16,182.15,26.0]
[1755835359485,4.88958565,182.16,182.15,26.66]
[1755835359788,4.88958565,182.16,182.15,26.0]
[1755835360086,132.4,182.21,182.15,31.54958565]
[1755835360293,4.88958565,182.2,182.16,5.54958565]
[1755835360587,4.88958565,182.2,182.17,0.66]
[1755835360780,179.60958565,182.21,182.17,0.66]
[1755835360983,137.28958565,182.21,182.17,0.66]
[1755835361366,4.88958565,182.2,182.17,0.66]
[1755835361761,132.4,182.21,182.17,0.66]
[1755835361963,4.88958565,182.2,182.17,0.66]
[1755835363194,4.88958565,182.19,182.18,0.66]
[1755835364290,4.88958565,182.2,182.18,0.66]
[1755835364488,4.88958565,182.2,182.16,16.79187514]
[1755835364666,4.88958565,182.2,182.18,0.66]
[1755835364988,4.88958565,182.2,182.19,0.66]
[1755835366017,0.06,182.25,182.21,26.0]
[1755835366169,0.06,182.25,182.22,31.54958565]
[1755835366596,0.06,182.25,182.23,0.66]
[1755835366967,0.06,182.25,182.24,0.69]
[1755835367403,0.06,182.25,182.24,0.97432314]
[1755835368198,0.06,182.25,182.24,6.46159267]
[1755835368495,0.06,182.25,182.24,11.35117832]
[1755835369390,0.06,182.25,182.24,0.97432314]
[1755835369576,0.06,182.25,182.24,0.69]
[1755835369783,0.06,182.25,182.24,2.20016]
[1755835370094,0.06,182.25,182.24,2.89016]
[1755835370290,0.06,182.25,182.24,8.37742953]
[1755835370597,0.06,182.25,182.24,2.89016]
[1755835372103,0.06,182.25,182.24,53.14693233]
[1755835377795,0.06,182.25,182.24,47.6596628]
[1755835379688,0.06,182.25,182.24,46.9696628]
[1755835379889,0.06,182.25,182.24,47.6596628]
[1755835380107,0.06,182.25,182.24,27.14693233]
[1755835385192,0.06,182.25,182.24,32.03651798]
[1755835385594,0.06,182.25,182.24,27.14693233]
[1755835386206,0.06,182.25,182.24,69.50693233]
[1755835386402,0.06,182.25,182.24,64.61734668]
[1755835386607,0.06,182.25,182.24,68.67477076]
[1755835386908,0.06,182.25,182.24,68.53260919]
[1755835387108,0.06,182.25,182.24,68.67477076]
[1755835387296,0.06,182.25,182.24,68.81693233]
[1755835387809,0.78,182.25,182.24,58.44007715]
[1755835388019,0.78,182.25,182.24,58.15575401]
[1755835388224,0.78,182.25,182.24,58.29791558]
[1755835388389,0.78,182.25,182.24,58.44007715]
[1755835388908,0.78,182.25,182.24,16.08007715]
[1755835389709,0.78,182.25,182.24,28.20016]
[1755835390228,0.06,182.25,182.24,28.20016]
[1755835391518,0.06,182.25,182.24,42.08007715]
[1755835391696,0.06,182.25,182.24,53.14693233]
[1755835392010,0.06,182.25,182.24,52.45693233]
[1755835392186,0.06,182.25,182.24,42.08007715]
[1755835392390,0.06,182.25,182.24,52.45693233]
[1755835395202,0.06,182.25,182.24,47.56734668]
[1755835400914,0.06,182.25,182.24,52.45693233]
[1755835401531,0.06,182.25,182.24,94.77693233]
[1755835402935,0.06,182.25,182.24,95.45693233]
[1755835408218,0.06,182.25,182.24,92.95693233]
[1755835408410,0.06,182.25,182.24,95.15636533]
[1755835409050,0.06,182.26,182.25,13.87991715]
[1755835409253,0.06,182.26,182.25,24.33908845]
[1755835409737,0.06,182.26,182.25,29.82605689]
[1755835412008,0.06,182.27,182.25,29.82605689]
[1755835412210,0.73,182.27,182.26,56.17991715]
[1755835412445,0.73,182.27,182.26,61.0695028]
[1755835413550,0.73,182.27,182.26,66.55617019]
[1755835413752,0.06,182.27,182.26,62.34658454]
[1755835414051,0.06,182.27,182.26,67.23617019]
[1755835414622,0.06,182.27,182.26,69.43536119]
[1755835416162,0.06,182.27,182.26,68.75536119]
[1755835416563,0.06,182.27,182.26,68.79536119]
[1755835416764,0.06,182.27,182.26,69.47536119]
[1755835417261,0.06,182.28,182.27,13.87991715]
[1755835417428,0.06,182.29,182.27,14.55991715]
[1755835417626,0.06,182.29,182.28,61.7695028]
[1755835418644,0.06,182.29,182.28,58.39898815]
[1755835418855,0.73,182.29,182.28,58.11466501]
[1755835419038,0.73,182.29,182.28,2.199071]
[1755835419239,5.61958565,182.29,182.28,2.199071]
[1755835419755,5.61958565,182.29,182.28,28.199071]
[1755835420435,0.73,182.29,182.28,28.199071]
[1755835420662,0.73,182.29,182.28,33.68513639]
[1755835420862,0.73,182.29,182.28,28.48339414]
[1755835421168,0.73,182.29,182.28,33.96945953]
[1755835421462,0.73,182.29,182.28,38.85904518]
[1755835422165,0.06,182.29,182.28,94.81463919]
[1755835422569,0.06,182.29,182.28,95.49463919]
[1755835422734,0.06,182.29,182.28,94.81463919]
[1755835430973,0.77,182.29,182.28,94.81463919]
[1755835431479,0.06,182.29,182.28,89.92505354]
[1755835431651,0.77,182.29,182.28,89.92505354]
[1755835432256,0.06,182.29,182.28,94.81463919]
[1755835432684,0.06,182.29,182.28,95.53463919]
[1755835433179,0.06,182.29,182.28,95.56463919]
[1755835437380,0.06,182.29,182.28,94.84463919]
[1755835437799,0.06,182.29,182.28,95.56463919]
[1755835440189,0.06,182.29,182.28,94.84463919]
[1755835440590,0.06,182.29,182.28,95.56463919]
[1755835441181,4.88958565,182.35,182.32,26.0]
[1755835441377,4.88958565,182.35,182.33,42.58432314]
[1755835441961,4.88958565,182.35,182.34,16.492125]
[1755835442678,41.04739174,182.41,182.34,16.492125]
[1755835442889,4.88958565,182.35,182.34,16.492125]
[1755835443202,0.71,182.35,182.34,16.492125]
[1755835443403,5.59958565,182.35,182.34,16.492125]
[1755835443762,0.71,182.35,182.34,16.492125]
[1755835443993,5.59958565,182.35,182.34,16.492125]
[1755835444713,0.71,182.35,182.34,16.492125]
[1755835444891,5.59958565,182.35,182.34,16.492125]
[1755835447187,0.71,182.35,182.34,16.492125]
[1755835447389,5.59958565,182.35,182.34,16.492125]
[1755835448907,0.71,182.35,182.34,16.492125]
[1755835449095,5.59958565,182.35,182.34,16.492125]
[1755835449823,0.71,182.35,182.34,16.522125]
[1755835450306,0.71,182.37,182.34,16.522125]
[1755835450491,5.59958565,182.37,182.34,17.242125]
[1755835450898,4.88958565,182.37,182.34,17.242125]
[1755835451100,0.71,182.36,182.34,16.522125]
[1755835451301,0.71,182.35,182.34,16.80644814]
[1755835451482,132.4,182.4,182.34,16.80644814]
[1755835451688,4.88958565,182.35,182.34,16.80644814]
[1755835451913,4.88958565,182.35,182.34,16.522125]
[1755835452107,5.59958565,182.35,182.34,16.522125]
[1755835452300,0.71,182.35,182.34,16.522125]
[1755835452505,5.59958565,182.35,182.34,16.522125]
[1755835452713,0.71,182.35,182.34,16.522125]
[1755835453019,5.59958565,182.35,182.34,16.522125]
[1755835454016,4.88958565,182.35,182.34,16.522125]
[1755835454720,5.59958565,182.35,182.34,16.522125]
[1755835457310,4.88958565,182.35,182.34,16.522125]
[1755835457709,5.57958565,182.35,182.34,16.522125]
[1755835458120,0.69,182.35,182.34,16.522125]
[1755835458330,5.57958565,182.35,182.34,16.522125]
[1755835458832,0.14216157,182.38,182.34,16.522125]
[1755835459001,0.69,182.35,182.34,16.522125]
[1755835459207,5.57958565,182.35,182.34,16.522125]
[1755835460118,5.57958565,182.35,182.34,0.03]
[1755835463241,4.88958565,182.35,182.34,0.03]
[1755835464210,4.88958565,182.35,182.34,4.919586]
[1755835465138,5.57958565,182.35,182.34,4.919586]
[1755835465823,0.14216157,182.38,182.34,30.919586]
[1755835465824,0.69,182.37,182.34,30.919586]
[1755835466023,4.88958565,182.35,182.34,30.919586]
[1755835466344,5.57958565,182.35,182.34,4.919586]
[1755835466550,10.4691713,182.35,182.34,0.03]
[1755835468724,5.57958565,182.35,182.34,0.03]
[1755835469034,3.81163378,182.38,182.34,0.03]
[1755835469035,4.35947221,182.38,182.34,0.03]
[1755835469231,4.88958565,182.35,182.34,0.71]
[1755835469638,4.88958565,182.36,182.34,17.203032]
[1755835469852,137.80848556,182.4,182.34,17.203032]
[1755835469853,4.88958565,182.37,182.35,26.68]
[1755835470148,4.88958565,182.38,182.36,0.68]
[1755835470445,4.88958565,182.38,182.37,0.68]
[1755835471228,4.88958565,182.39,182.37,0.68]
[1755835471535,4.88958565,182.39,182.36,0.28432314]
[1755835471719,4.88958565,182.39,182.36,0.96432314]
[1755835472059,4.88958565,182.39,182.37,0.68]
[1755835472217,4.88958565,182.38,182.37,0.68]
[1755835472645,0.75,182.41,182.37,0.68]
[1755835472950,4.88958565,182.38,182.37,0.68]
[1755835473132,5.57958565,182.38,182.35,26.0]
[1755835473326,4.88958565,182.36,182.35,26.0]
[1755835473629,0.69,182.39,182.35,26.68]
[1755835473943,0.20216157,182.41,182.35,26.0]
[1755835474149,4.38958565,182.37,182.36,26.0]
[1755835474347,4.88958565,182.38,182.36,26.0]
[1755835474546,4.88958565,182.38,182.36,26.68]
[1755835475520,4.88958565,182.38,182.37,4.889586]
[1755835476053,0.89216157,182.41,182.37,4.889586]
[1755835476242,4.88958565,182.38,182.37,4.889586]
[1755835477118,0.06,182.41,182.37,4.889586]
[1755835477452,4.88958565,182.39,182.38,0.68]
[1755835478134,0.06,182.41,182.38,0.68]
[1755835478347,0.06,182.41,182.37,4.889586]
[1755835478348,4.88958565,182.39,182.37,4.889586]
[1755835479053,4.88958565,182.39,182.38,0.68]
[1755835479535,0.06,182.41,182.38,0.68]
[1755835479736,4.88958565,182.39,182.38,0.68]
[1755835480243,0.06,182.41,182.39,0.28432314]
[1755835480443,0.06,182.41,182.4,18.7695028]
[1755835480642,0.06,182.41,182.4,19.4495028]
[1755835481529,0.06,182.41,182.4,21.6473658]
[1755835482157,0.06,182.41,182.4,42.75778015]
[1755835486117,0.06,182.41,182.4,48.24023629]
[1755835486928,0.06,182.41,182.4,42.75778015]
[1755835487624,0.06,182.41,182.4,48.24023629]
[1755835487937,0.06,182.41,182.4,42.75778015]
[1755835488829,0.06,182.41,182.4,48.24023629]
[1755835489951,0.06,182.41,182.4,42.75778015]
[1755835490455,0.06,182.41,182.4,48.24023629]
[1755835492853,0.06,182.41,182.4,42.75778015]
[1755835493046,0.06,182.41,182.4,48.24023629]
[1755835495547,0.06,182.41,182.4,53.12982194]
[1755835496551,0.06,182.41,182.4,48.24023629]
[1755835496749,0.06,182.41,182.4,53.12982194]
[1755835496949,0.06,182.41,182.4,89.9073658]
[1755835497560,0.06,182.41,182.4,84.33778015]
[1755835498075,5.66958565,182.41,182.4,2.197863]
[1755835498363,4.94958565,182.41,182.4,2.197863]
[1755835499064,0.06,182.41,182.4,2.907863]
[1755835499236,0.06,182.41,182.4,2.197863]
[1755835500356,5.66958565,182.41,182.4,2.197863]
[1755835509480,0.06,182.41,182.4,2.197863]
[1755835509671,0.06,182.41,182.4,2.907863]
[1755835509672,4.94958565,182.41,182.4,2.907863]
[1755835509859,0.06,182.41,182.4,28.907863]
[1755835510065,4.94958565,182.41,182.4,28.907863]
[1755835510371,0.06,182.41,182.4,29.19218614]
[1755835510568,5.66958565,182.41,182.4,2.197863]
[1755835510896,5.66958565,182.41,182.37,0.03]
[1755835510897,5.66958565,182.41,182.38,26.0]
[1755835511067,4.88958565,182.39,182.38,26.0]
[1755835511266,5.38958565,182.39,182.38,26.0]
[1755835511466,5.38958565,182.39,182.38,42.489406]
[1755835511771,4.88958565,182.39,182.38,42.489406]
[1755835513311,0.06,182.41,182.38,43.199406]
[1755835513590,0.06,182.41,182.39,0.99432314]
[1755835513966,0.06,182.41,182.4,0.71]
[1755835515070,0.06,182.41,182.4,20.07237329]
[1755835515465,5.44958565,182.41,182.38,42.489406]
[1755835515668,4.88958565,182.39,182.38,16.77372914]
[1755835515879,4.88958565,182.4,182.39,26.0]
[1755835516085,4.88958565,182.4,182.39,26.71]
[1755835516691,0.06,182.41,182.39,26.71]
[1755835516891,4.88958565,182.4,182.39,26.71]
[1755835517679,4.94958565,182.41,182.39,26.71]
[1755835517879,4.94958565,182.41,182.4,0.71]
[1755835518196,0.06,182.41,182.4,0.71]
[1755835518398,4.94958565,182.41,182.4,0.71]
[1755835519499,4.94958565,182.41,182.4,45.4795028]
[1755835519500,0.06,182.41,182.4,45.4795028]
[1755835519683,0.06,182.41,182.4,50.96195894]
[1755835520391,0.06,182.41,182.4,20.07237329]
[1755835520575,0.06,182.41,182.4,22.27035629]
[1755835520768,0.06,182.41,182.4,48.27035629]
[1755835520989,0.06,182.41,182.4,69.41994194]
[1755835521678,0.06,182.41,182.4,64.53035629]
[1755835521881,0.06,182.41,182.4,69.41994194]
[1755835522283,0.06,182.41,182.4,64.53035629]
[1755835522488,0.06,182.43,182.42,13.87991715]
[1755835522697,0.06,182.43,182.42,61.1095028]
[1755835522892,0.06,182.43,182.42,61.8195028]
[1755835523586,0.06,182.43,182.42,64.15892337]
[1755835523794,0.06,182.43,182.42,69.64077842]
[1755835524678,0.06,182.43,182.42,64.75119277]
[1755835524880,0.06,182.43,182.42,69.64077842]
[1755835528876,0.06,182.43,182.42,64.75119277]
[1755835529093,0.06,182.43,182.42,69.47861685]
[1755835532153,0.06,182.43,182.42,21.5590312]
[1755835532428,0.71,182.43,182.42,58.11285301]
[1755835532601,5.59958565,182.43,182.42,58.11285301]
[1755835532802,5.59958565,182.43,182.42,58.25501458]
[1755835533204,5.59958565,182.43,182.42,58.39717615]
[1755835533422,0.06,182.43,182.42,58.39717615]
[1755835535427,0.06,182.43,182.42,63.8790312]
[1755835538128,5.59958565,182.43,182.42,58.39717615]
[1755835538337,5.59958565,182.43,182.42,44.76158214]
[1755835538527,5.59958565,182.43,182.42,2.197259]
[1755835538711,5.59958565,182.43,182.42,28.197259]
[1755835538904,0.71,182.43,182.42,28.197259]
[1755835539313,5.59958565,182.43,182.42,28.197259]
[1755835539726,10.4891713,182.43,182.42,2.197259]
[1755835539923,10.4891713,182.43,182.41,0.03]
[1755835540135,5.53958565,182.42,182.41,0.03]
[1755835540612,5.53958565,182.42,182.41,2.228346]
[1755835546443,5.53958565,182.42,182.41,0.03]
[1755835550552,5.53958565,182.42,182.41,5.569586]
[1755835551345,5.53958565,182.42,182.41,0.03]
[1755835552157,5.59958565,182.42,182.41,0.03]
[1755835554772,0.06,182.42,182.41,26.71]
[1755835554931,0.06,182.42,182.41,0.71]
[1755835555126,0.06,182.42,182.41,14.58991715]
[1755835555951,0.06,182.42,182.41,20.07207273]
[1755835557258,0.06,182.42,182.41,24.96165838]
[1755835560563,0.06,182.42,182.41,13.90991715]
[1755835560864,0.06,182.42,182.41,20.07207273]
[1755835561068,0.06,182.42,182.41,24.96165838]
[1755835562039,0.06,182.42,182.41,15.96549758]
[1755835562481,0.06,182.42,182.41,16.10765915]
[1755835562982,0.06,182.42,182.41,22.26981473]
[1755835565557,0.06,182.42,182.41,21.58981473]
[1755835566187,0.06,182.42,182.41,22.26981473]
[1755835568579,0.06,182.42,182.41,27.15940038]
[1755835569692,1e-08,182.42,182.41,27.15940038]
[1755835569897,0.2,182.44,182.43,13.73775558]
[1755835570113,209.5,182.57,182.43,13.73775558]
[1755835570114,44.115597,182.62,182.51,26.0]
[1755835570270,5.57958565,182.57,182.55,26.0]
[1755835570683,0.69,182.57,182.55,26.0]
[1755835570974,5.57958565,182.57,182.55,26.0]
[1755835571268,0.69,182.56,182.55,26.0]
[1755835571471,0.69,182.58,182.55,26.0]
[1755835571784,5.57958565,182.57,182.56,5.579586]
[1755835572190,42.42,182.64,182.56,5.579586]
[1755835572497,0.69,182.58,182.56,5.579586]
[1755835572701,5.57958565,182.58,182.56,5.579586]
[1755835573694,4.88958565,182.58,182.56,5.579586]
[1755835573889,5.57958565,182.57,182.56,5.579586]
[1755835575780,4.88958565,182.57,182.56,5.579586]
[1755835575974,5.57958565,182.57,182.56,5.579586]
[1755835576572,5.57958565,182.57,182.55,26.0]
[1755835576875,5.57958565,182.56,182.55,26.0]
[1755835577287,5.57958565,182.56,182.5,13.59559401]
[1755835577488,4.88958565,182.52,182.5,13.59559401]
[1755835577682,4.88958565,182.52,182.51,26.0]
[1755835578279,4.88958565,182.52,182.51,30.889586]
[1755835578900,0.69,182.53,182.52,26.0]
[1755835579087,5.57958565,182.53,182.52,26.0]
[1755835579483,5.57958565,182.53,182.51,30.889586]
[1755835579707,5.57958565,182.52,182.51,30.889586]
[1755835579882,0.69,182.52,182.51,30.889586]
[1755835582008,4.88958565,182.56,182.55,26.0]
[1755835582372,4.88958565,182.57,182.55,26.68]
[1755835582679,0.69,182.62,182.58,26.0]
[1755835583080,5.57958565,182.62,182.58,26.68]
[1755835583291,4.88958565,182.64,182.6,26.0]
[1755835583598,4.88958565,182.63,182.6,26.0]
[1755835583909,0.69,182.66,182.61,14.55991715]
[1755835584086,4.88958565,182.66,182.61,13.87991715]
[1755835584291,4.88958565,182.64,182.62,26.0]
[1755835584515,0.69,182.66,182.62,26.0]
[1755835584800,5.57958565,182.65,182.62,26.0]
[1755835585004,0.69,182.66,182.62,26.0]
[1755835585175,4.88958565,182.64,182.62,26.0]
[1755835585377,0.69,182.65,182.62,26.0]
[1755835585604,4.88958565,182.65,182.62,26.0]
[1755835585805,4.88958565,182.65,182.63,26.0]
[1755835586012,5.57958565,182.65,182.63,26.0]
[1755835586201,4.88958565,182.65,182.63,26.0]
[1755835586582,5.57958565,182.64,182.63,26.0]
[1755835587011,4.88958565,182.64,182.63,26.0]
[1755835587391,4.88958565,182.64,182.63,31.579585]
[1755835589395,0.69,182.66,182.63,31.579585]
[1755835589599,4.88958565,182.65,182.63,31.579585]
[1755835589795,0.06,182.69,182.64,0.68]
[1755835590127,0.06,182.69,182.68,4.88958565]
[1755835590486,0.06,182.69,182.68,5.56958565]
[1755835590687,0.06,182.69,182.68,0.68]
[1755835591117,0.06,182.69,182.68,26.96432314]
[1755835591290,0.06,182.69,182.68,31.85390879]
[1755835591491,0.06,182.69,182.68,26.96432314]
[1755835591685,0.06,182.69,182.68,37.43349379]
[1755835592113,0.06,182.69,182.68,32.54390814]
[1755835592324,0.06,182.69,182.68,37.43349379]
[1755835593626,0.75,182.69,182.68,31.579585]
[1755835594005,0.06,182.69,182.68,32.259585]
[1755835595024,0.06,182.69,182.68,31.579585]
[1755835595897,0.06,182.69,182.68,32.259585]
[1755835596101,0.06,182.69,182.68,51.0290878]
[1755835596735,0.06,182.69,182.68,100.12314078]
[1755835599932,0.06,182.69,182.68,95.23355513]
[1755835600111,0.06,182.69,182.68,100.12314078]
[1755835600312,0.06,182.69,182.68,51.0290878]
[1755835600525,0.06,182.69,182.68,100.08314078]
[1755835603009,0.06,182.69,182.68,95.19355513]
[1755835603338,0.06,182.69,182.68,104.97272643]
[1755835603507,0.06,182.69,182.68,105.114888]
[1755835603917,0.06,182.69,182.68,100.22530235]
[1755835604317,0.06,182.69,182.68,105.114888]
[1755835604844,0.06,182.73,182.72,44.7695028]
[1755835605006,0.06,182.73,182.72,88.2695028]
[1755835605212,0.06,182.73,182.72,84.05991715]
[1755835605426,0.06,182.73,182.72,83.37991715]
[1755835605620,0.06,182.73,182.72,88.2695028]
[1755835606127,0.06,182.73,182.72,83.37991715]
[1755835606335,0.06,182.73,182.72,39.87991715]
[1755835606536,5.63958565,182.73,182.72,0.28432314]
[1755835606723,5.63958565,182.73,182.68,5.579585]
[1755835606724,5.63958565,182.73,182.71,43.5]
[1755835606920,0.67,182.72,182.71,69.5]
[1755835607122,0.06,182.73,182.71,69.5]
[1755835607334,0.06,182.73,182.72,0.28432314]
[1755835607831,0.06,182.73,182.72,19.4595028]
[1755835608851,0.06,182.73,182.72,24.93235744]
[1755835609519,0.06,182.73,182.72,68.41235744]
[1755835610749,0.06,182.73,182.72,73.30194244]
[1755835611847,0.06,182.73,182.72,62.24950215]
[1755835612230,0.06,182.73,182.72,73.30194244]
[1755835612735,0.06,182.73,182.72,62.93950215]
[1755835612959,0.06,182.73,182.72,23.6590878]
[1755835613131,0.06,182.73,182.72,67.1190878]
[1755835613463,0.06,182.73,182.72,62.22950215]
[1755835613753,0.06,182.73,182.72,67.1190878]
[1755835614346,0.73,182.73,182.72,4.889585]
[1755835614512,0.73,182.73,182.72,48.329585]
[1755835614722,0.73,182.73,182.72,30.889585]
[1755835615135,0.06,182.73,182.72,30.889585]
[1755835616846,0.73,182.73,182.72,30.889585]
[1755835618364,0.06,182.73,182.72,30.889585]
[1755835618860,5.61958565,182.73,182.72,30.889585]
[1755835619631,0.73,182.73,182.72,30.889585]
[1755835620435,5.61958565,182.73,182.69,0.03]
[1755835620648,4.88958565,182.7,182.69,0.03]
[1755835620846,0.67,182.72,182.69,4.919586]
[1755835621067,4.88958565,182.7,182.69,0.03]
[1755835621438,5.55958565,182.7,182.69,0.03]
[1755835622666,0.67,182.7,182.69,0.03]
[1755835622867,5.61958565,182.73,182.69,26.03]
[1755835624065,5.61958565,182.73,182.71,26.0]
[1755835624272,0.06,182.73,182.71,26.0]
[1755835624671,4.94958565,182.73,182.71,26.0]
[1755835624872,0.67,182.72,182.71,26.0]
[1755835625062,0.67,182.72,182.71,30.889585]
[1755835625260,5.55958565,182.72,182.71,30.889585]
[1755835625483,0.06,182.73,182.71,30.889585]
[1755835625667,4.94958565,182.73,182.71,30.889585]
[1755835625868,0.06,182.73,182.71,30.889585]
[1755835626061,4.94958565,182.73,182.71,30.889585]
[1755835626465,0.06,182.73,182.71,30.889585]
[1755835626783,0.06,182.73,182.71,31.579585]
[1755835627690,0.06,182.73,182.72,5.86390879]
[1755835629582,0.06,182.73,182.72,11.33676343]
[1755835629755,0.06,182.73,182.72,24.93235744]
[1755835632875,0.06,182.73,182.72,25.07451901]
[1755835633306,1e-08,182.73,182.72,25.07451901]
[1755835633508,0.67,182.84,182.79,13.59559401]
[1755835633704,0.67,182.84,182.82,26.0]
[1755835634711,5.55958565,182.86,182.82,69.4]
[1755835635201,0.67,182.88,182.84,0.28432314]
[1755835635404,0.67,182.87,182.84,0.28432314]
[1755835635914,0.06,182.86,182.85,26.0]
[1755835637988,0.06,182.86,182.85,30.889585]
[1755835638909,0.74,182.86,182.85,30.889585]
[1755835639594,0.06,182.86,182.85,30.889585]
[1755835639786,0.06,182.86,182.85,31.599585]
[1755835639986,0.06,182.86,182.85,30.889585]
[1755835640383,0.74,182.86,182.85,30.889585]
[1755835641692,0.06,182.86,182.85,30.889585]
[1755835642416,0.74,182.86,182.85,30.889585]
[1755835644210,0.06,182.86,182.85,30.889585]
[1755835645113,0.74,182.86,182.85,30.889585]
[1755835645516,0.06,182.86,182.85,30.889585]
[1755835650417,0.06,182.86,182.85,94.08846578]
[1755835650600,0.06,182.86,182.85,98.97805143]
[1755835651511,0.06,182.86,182.85,104.00979865]
[1755835652011,1e-08,182.86,182.85,104.00979865]
[1755835652589,1e-08,182.86,182.85,99.120213]
[1755835653022,1e-08,182.86,182.85,99.260213]
[1755835653993,1e-08,182.86,182.85,51.09062735]
[1755835654320,1e-08,182.86,182.85,99.240213]
[1755835655320,1e-08,182.86,182.85,18.48517901]
[1755835655505,1e-08,182.86,182.85,23.37476466]
[1755835655708,1e-08,182.86,182.85,66.8990878]
[1755835656011,1e-08,182.86,182.85,48.129585]
[1755835656214,0.68000001,182.86,182.85,4.889585]
[1755835656523,0.68000001,182.86,182.85,30.889585]
[1755835656815,1e-08,182.86,182.85,19.47950215]